[Event "Early-Titled-Tuesday-Blitz-November-28-2023"]
[Site "Chess.com"]
[Date "2023.11.28"]
[Round "2"]
[White "emeli_chess"]
[Black "Meri-Arabidze"]
[Result "0-1"]
[WhiteElo "2383"]
[BlackElo "2682"]
[TimeControl "180+1"]
[EndTime "8:18:27 PST"]
[Termination "Meri-Arabidze won by resignation"]

1. d4 {[%clk 0:03:00.9]} 1... f5 {[%clk 0:02:52.3]} 2. e4 {[%clk 0:02:59.7]}
2... fxe4 {[%clk 0:02:52]} 3. Nc3 {[%clk 0:02:59.7]} 3... Nf6 {[%clk 0:02:52.3]}
4. Bg5 {[%clk 0:02:59.7]} 4... Nc6 {[%clk 0:02:53]} 5. f3 {[%clk 0:02:37.2]}
5... d5 {[%clk 0:02:52.6]} 6. Bb5 {[%clk 0:02:26.8]} 6... a6 {[%clk 0:02:51.5]}
7. Bxc6+ {[%clk 0:02:26.2]} 7... bxc6 {[%clk 0:02:37.8]} 8. Bxf6 {[%clk
0:02:25]} 8... exf6 {[%clk 0:02:37.3]} 9. fxe4 {[%clk 0:02:25]} 9... dxe4 {[%clk
0:02:35.9]} 10. Nxe4 {[%clk 0:02:23.5]} 10... Be7 {[%clk 0:02:32.9]} 11. Nf3
{[%clk 0:02:21.3]} 11... O-O {[%clk 0:02:33.1]} 12. O-O {[%clk 0:02:20]} 12...
Rb8 {[%clk 0:02:33.5]} 13. b3 {[%clk 0:02:13.4]} 13... Bg4 {[%clk 0:02:31.5]}
14. Ng3 {[%clk 0:01:55.4]} 14... Bd6 {[%clk 0:02:27.7]} 15. Qd3 {[%clk
0:01:45.9]} 15... Re8 {[%clk 0:02:15.2]} 16. Rae1 {[%clk 0:01:41]} 16... Qd7
{[%clk 0:02:02.2]} 17. Re4 {[%clk 0:01:22.6]} 17... Rxe4 {[%clk 0:01:55.3]} 18.
Qxe4 {[%clk 0:01:20.5]} 18... Re8 {[%clk 0:01:53.1]} 19. Qd3 {[%clk 0:01:20.1]}
19... a5 {[%clk 0:01:49.4]} 20. c4 {[%clk 0:01:05.4]} 20... c5 {[%clk
0:01:47.9]} 21. d5 {[%clk 0:01:03.4]} 21... Bf4 {[%clk 0:01:44.4]} 22. Re1
{[%clk 0:00:52.9]} 22... Rxe1+ {[%clk 0:01:41.9]} 23. Nxe1 {[%clk 0:00:53]}
23... h5 {[%clk 0:01:26]} 24. Nf3 {[%clk 0:00:47.3]} 24... Qe8 {[%clk
0:01:18.2]} 25. Ne4 {[%clk 0:00:43.7]} 25... Qe7 {[%clk 0:01:01.5]} 26. Nf2
{[%clk 0:00:40]} 26... Be3 {[%clk 0:00:54.2]} 27. Kf1 {[%clk 0:00:39]} 27...
Bxf3 {[%clk 0:00:50.7]} 28. gxf3 {[%clk 0:00:38.8]} 28... Qe5 {[%clk 0:00:49.2]}
29. Qe4 {[%clk 0:00:34.7]} 29... Qxe4 {[%clk 0:00:20.2]} 30. Nxe4 {[%clk
0:00:33]} 30... Kf7 {[%clk 0:00:18.8]} 31. Ke2 {[%clk 0:00:32.4]} 31... Bd4
{[%clk 0:00:19]} 32. h3 {[%clk 0:00:31.8]} 32... g5 {[%clk 0:00:19]} 33. Kd3
{[%clk 0:00:31]} 33... Kg6 {[%clk 0:00:18.9]} 34. a3 {[%clk 0:00:30.3]} 34... f5
{[%clk 0:00:18.9]} 35. Nd2 {[%clk 0:00:29.1]} 35... Bb2 {[%clk 0:00:17.2]} 36.
b4 {[%clk 0:00:23.1]} 36... axb4 {[%clk 0:00:15.8]} 37. axb4 {[%clk 0:00:23.4]}
37... cxb4 {[%clk 0:00:16.7]} 38. Nb3 {[%clk 0:00:23.1]} 38... Kf6 {[%clk
0:00:16.3]} 39. c5 {[%clk 0:00:22.6]} 39... Ke5 {[%clk 0:00:15.6]} 40. Kc4
{[%clk 0:00:22.8]} 40... Bc3 {[%clk 0:00:13.4]} 41. Na5 {[%clk 0:00:21.9]} 41...
h4 {[%clk 0:00:06.4]} 42. Nc6+ {[%clk 0:00:20.3]} 42... Kf6 {[%clk 0:00:06.5]}
43. Nxb4 {[%clk 0:00:18]} 43... Bxb4 {[%clk 0:00:05.8]} 44. Kxb4 {[%clk
0:00:18]} 44... g4 {[%clk 0:00:06.7]} 45. d6 {[%clk 0:00:16.5]} 45... cxd6
{[%clk 0:00:06.8]} 46. c6 {[%clk 0:00:17]} 46... Ke7 {[%clk 0:00:06.9]} 47. Kb5
{[%clk 0:00:17.4]} 47... Kd8 {[%clk 0:00:06.7]} 48. fxg4 {[%clk 0:00:14.4]}
48... fxg4 {[%clk 0:00:06.8]} 49. hxg4 {[%clk 0:00:13.6]} 49... h3 {[%clk
0:00:07.3]} 50. Kb6 {[%clk 0:00:13.5]} 50... Kc8 {[%clk 0:00:06.9]} 51. g5
{[%clk 0:00:13.2]} 51... h2 {[%clk 0:00:07.3]} 0-1

[Event "Early-Titled-Tuesday-Blitz-November-28-2023"]
[Site "Chess.com"]
[Date "2023.11.28"]
[Round "2"]
[White "whitemirrorninja"]
[Black "gpsji27"]
[Result "0-1"]
[WhiteElo "2507"]
[BlackElo "2335"]
[TimeControl "180+1"]
[EndTime "8:18:27 PST"]
[Termination "gpsji27 won by checkmate"]

1. d4 {[%clk 0:03:00.9]} 1... d5 {[%clk 0:02:59.3]} 2. Nc3 {[%clk 0:03:00.2]}
2... Nf6 {[%clk 0:02:59]} 3. Bf4 {[%clk 0:03:00.5]} 3... e6 {[%clk 0:02:49.5]}
4. Nb5 {[%clk 0:02:55.4]} 4... Na6 {[%clk 0:02:48.3]} 5. e3 {[%clk 0:02:50.1]}
5... Be7 {[%clk 0:02:43.3]} 6. Nf3 {[%clk 0:02:47.4]} 6... c6 {[%clk 0:02:31.6]}
7. Nc3 {[%clk 0:02:46.1]} 7... c5 {[%clk 0:02:31.6]} 8. Nb5 {[%clk 0:02:44.9]}
8... O-O {[%clk 0:02:31.3]} 9. c3 {[%clk 0:02:43.6]} 9... Bd7 {[%clk 0:02:27.6]}
10. a4 {[%clk 0:02:44]} 10... Ne4 {[%clk 0:02:22.1]} 11. Bd3 {[%clk 0:02:38]}
11... f5 {[%clk 0:02:17]} 12. h4 {[%clk 0:02:30.7]} 12... Bxb5 {[%clk
0:02:07.9]} 13. axb5 {[%clk 0:02:27.8]} 13... Nc7 {[%clk 0:02:08.1]} 14. h5
{[%clk 0:02:10.4]} 14... c4 {[%clk 0:02:03.7]} 15. Bxc7 {[%clk 0:01:50]} 15...
Qxc7 {[%clk 0:02:00]} 16. Be2 {[%clk 0:01:50.6]} 16... f4 {[%clk 0:01:55.8]} 17.
Ne5 {[%clk 0:01:45.2]} 17... fxe3 {[%clk 0:01:53.5]} 18. fxe3 {[%clk 0:01:44.3]}
18... Bd6 {[%clk 0:01:53.1]} 19. Bg4 {[%clk 0:01:36.3]} 19... Bxe5 {[%clk
0:01:45.7]} 20. Bxe6+ {[%clk 0:01:34.8]} 20... Kh8 {[%clk 0:01:45.9]} 21. dxe5
{[%clk 0:01:23.1]} 21... Qxe5 {[%clk 0:01:46.8]} 22. Qg4 {[%clk 0:01:16.9]}
22... Nf2 {[%clk 0:01:41.6]} 23. Qd4 {[%clk 0:01:17.3]} 23... Qxd4 {[%clk
0:01:39.6]} 24. cxd4 {[%clk 0:01:10.5]} 24... Nxh1 {[%clk 0:01:39.3]} 25. Bxd5
{[%clk 0:01:11.2]} 25... Ng3 {[%clk 0:01:36.3]} 26. Bxc4 {[%clk 0:01:01]} 26...
Rac8 {[%clk 0:01:35.3]} 27. Bd3 {[%clk 0:00:59.8]} 27... Nxh5 {[%clk 0:01:33.4]}
28. Rxa7 {[%clk 0:00:58.6]} 28... Rc7 {[%clk 0:01:11.2]} 29. b6 {[%clk
0:00:52.7]} 29... Re7 {[%clk 0:01:10.4]} 30. Be2 {[%clk 0:00:46.4]} 30... Ng3
{[%clk 0:01:08.9]} 31. Bf3 {[%clk 0:00:44.8]} 31... Rxe3+ {[%clk 0:01:05.6]} 32.
Kf2 {[%clk 0:00:45.2]} 32... Nf5 {[%clk 0:00:52]} 33. g4 {[%clk 0:00:41.3]}
33... Rb3 {[%clk 0:00:44.7]} 34. gxf5 {[%clk 0:00:41.1]} 34... g6 {[%clk
0:00:45]} 35. Ra5 {[%clk 0:00:11.3]} 35... Rxb2+ {[%clk 0:00:41]} 36. Ke3 {[%clk
0:00:11]} 36... Rxb6 {[%clk 0:00:40.7]} 37. fxg6 {[%clk 0:00:11.1]} 37... Rb3+
{[%clk 0:00:40.7]} 38. Ke4 {[%clk 0:00:10.7]} 38... Rbxf3 {[%clk 0:00:39.9]} 39.
Rg5 {[%clk 0:00:08.3]} 39... hxg6 {[%clk 0:00:39.4]} 40. Rxg6 {[%clk 0:00:09]}
40... R3f4+ {[%clk 0:00:39.2]} 41. Ke5 {[%clk 0:00:08.9]} 41... R4f5+ {[%clk
0:00:38.6]} 42. Ke6 {[%clk 0:00:08.8]} 42... Kh7 {[%clk 0:00:36.5]} 43. Rg2
{[%clk 0:00:08.4]} 43... Rf2 {[%clk 0:00:22.8]} 44. Rg4 {[%clk 0:00:06.3]} 44...
Re2+ {[%clk 0:00:22.4]} 45. Kd6 {[%clk 0:00:06.5]} 45... Rf7 {[%clk 0:00:19.5]}
46. d5 {[%clk 0:00:03.8]} 46... Rd2 {[%clk 0:00:19.4]} 47. Ke6 {[%clk
0:00:02.7]} 47... Rg7 {[%clk 0:00:20]} 48. Rh4+ {[%clk 0:00:02.7]} 48... Kg8
{[%clk 0:00:20.3]} 49. d6 {[%clk 0:00:03.3]} 49... Rg6+ {[%clk 0:00:20.7]} 50.
Ke7 {[%clk 0:00:03.9]} 50... Rdxd6 {[%clk 0:00:20.1]} 51. Rf4 {[%clk 0:00:03.8]}
51... Rge6# {[%clk 0:00:20.2]} 0-1

[Event "Early-Titled-Tuesday-Blitz-November-28-2023"]
[Site "Chess.com"]
[Date "2023.11.28"]
[Round "2"]
[White "deribas12345"]
[Black "Sokoloco"]
[Result "0-1"]
[WhiteElo "2527"]
[BlackElo "2765"]
[TimeControl "180+1"]
[EndTime "8:18:31 PST"]
[Termination "Sokoloco won by resignation"]

1. d4 {[%clk 0:03:00.9]} 1... d6 {[%clk 0:02:59.9]} 2. c4 {[%clk 0:03:01.2]}
2... e5 {[%clk 0:02:59.3]} 3. d5 {[%clk 0:02:59.9]} 3... f5 {[%clk 0:02:58.9]}
4. e4 {[%clk 0:02:59.6]} 4... f4 {[%clk 0:02:55.6]} 5. g3 {[%clk 0:02:59.1]}
5... Ne7 {[%clk 0:02:31.8]} 6. gxf4 {[%clk 0:02:55.1]} 6... exf4 {[%clk
0:02:32.7]} 7. Bxf4 {[%clk 0:02:53.4]} 7... Ng6 {[%clk 0:02:32.9]} 8. Bg3 {[%clk
0:02:53.2]} 8... Be7 {[%clk 0:02:31.7]} 9. Nc3 {[%clk 0:02:48.7]} 9... O-O
{[%clk 0:02:31.5]} 10. Nge2 {[%clk 0:02:28.5]} 10... Bg4 {[%clk 0:02:26.4]} 11.
Rg1 {[%clk 0:02:13.8]} 11... Nd7 {[%clk 0:02:20]} 12. Qc2 {[%clk 0:01:46.5]}
12... Bg5 {[%clk 0:02:13.2]} 13. Nd4 {[%clk 0:01:42.8]} 13... Qf6 {[%clk
0:01:58.6]} 14. Ne6 {[%clk 0:01:36.5]} 14... Bxe6 {[%clk 0:01:54.7]} 15. dxe6
{[%clk 0:01:37.4]} 15... Nde5 {[%clk 0:01:51.6]} 16. Be2 {[%clk 0:01:33.7]}
16... c6 {[%clk 0:01:44.9]} 17. c5 {[%clk 0:00:41.6]} 17... dxc5 {[%clk
0:01:40.3]} 18. Qb3 {[%clk 0:00:40.9]} 18... Kh8 {[%clk 0:01:36.6]} 19. Rd1
{[%clk 0:00:31]} 19... Rae8 {[%clk 0:01:32.6]} 20. Qxb7 {[%clk 0:00:29.6]} 20...
Rb8 {[%clk 0:01:21.6]} 21. Qxa7 {[%clk 0:00:29.6]} 21... Rxb2 {[%clk 0:01:21]}
22. Qxc5 {[%clk 0:00:29.8]} 22... Re8 {[%clk 0:00:58.3]} 23. Rb1 {[%clk
0:00:10.6]} 23... Rc2 {[%clk 0:00:56.9]} 24. h4 {[%clk 0:00:08]} 24... Bf4
{[%clk 0:00:52]} 25. Nd5 {[%clk 0:00:07.2]} 25... Rxc5 {[%clk 0:00:44.4]} 26.
Nxf6 {[%clk 0:00:07.4]} 26... gxf6 {[%clk 0:00:45.3]} 27. h5 {[%clk 0:00:07]}
27... Bxg3 {[%clk 0:00:45.3]} 28. fxg3 {[%clk 0:00:07.3]} 28... Nf8 {[%clk
0:00:44.2]} 29. Rf1 {[%clk 0:00:06.2]} 29... Kg7 {[%clk 0:00:41.4]} 30. Rb7+
{[%clk 0:00:04.5]} 30... Kg8 {[%clk 0:00:38.9]} 31. Rxf6 {[%clk 0:00:04.7]}
31... Nxe6 {[%clk 0:00:35]} 32. Rf5 {[%clk 0:00:04.1]} 32... Nd4 {[%clk
0:00:34]} 33. Bd1 {[%clk 0:00:03.6]} 33... Nxf5 {[%clk 0:00:33.6]} 34. exf5
{[%clk 0:00:03.6]} 34... Nf3+ {[%clk 0:00:25]} 35. Kf2 {[%clk 0:00:02.9]} 35...
Ng5 {[%clk 0:00:23.1]} 36. Bb3+ {[%clk 0:00:02.3]} 36... Kh8 {[%clk 0:00:23]}
37. g4 {[%clk 0:00:03.2]} 37... Rc3 {[%clk 0:00:21.2]} 38. h6 {[%clk 0:00:02.9]}
38... Nh3+ {[%clk 0:00:19.8]} 39. Kg2 {[%clk 0:00:02.1]} 39... Re2+ {[%clk
0:00:19.8]} 40. Kf1 {[%clk 0:00:02.3]} 40... Rf2+ {[%clk 0:00:18.9]} 41. Ke1
{[%clk 0:00:02.9]} 41... Re3+ {[%clk 0:00:18.3]} 42. Kd1 {[%clk 0:00:02.8]}
42... Re8 {[%clk 0:00:18.9]} 43. Bf7 {[%clk 0:00:02.1]} 43... Rd8+ {[%clk
0:00:18.8]} 44. Ke1 {[%clk 0:00:02.4]} 44... Rf4 {[%clk 0:00:18.1]} 45. Be6
{[%clk 0:00:02.4]} 45... Rxg4 {[%clk 0:00:18.1]} 46. f6 {[%clk 0:00:02.5]} 46...
Re4+ {[%clk 0:00:18.7]} 47. Kf1 {[%clk 0:00:03.1]} 47... Rxe6 {[%clk 0:00:19.6]}
48. f7 {[%clk 0:00:03.6]} 48... Rf6+ {[%clk 0:00:19.9]} 49. Kg2 {[%clk
0:00:04.2]} 49... Rf8 {[%clk 0:00:20.8]} 50. Kxh3 {[%clk 0:00:04.5]} 50... R6xf7
{[%clk 0:00:21.7]} 51. Rb6 {[%clk 0:00:04.3]} 51... Rf6 {[%clk 0:00:21.9]} 52.
a4 {[%clk 0:00:03.7]} 52... Rg8 {[%clk 0:00:22]} 53. Rxc6 {[%clk 0:00:03.3]}
53... Rxc6 {[%clk 0:00:22.2]} 0-1

[Event "Early-Titled-Tuesday-Blitz-November-28-2023"]
[Site "Chess.com"]
[Date "2023.11.28"]
[Round "2"]
[White "nicolochessit"]
[Black "muthaiahchess"]
[Result "0-1"]
[WhiteElo "2316"]
[BlackElo "2539"]
[TimeControl "180+1"]
[EndTime "8:18:33 PST"]
[Termination "muthaiahchess won by resignation"]

1. e4 {[%clk 0:02:58.9]} 1... e6 {[%clk 0:02:58.5]} 2. d4 {[%clk 0:02:57.1]}
2... d5 {[%clk 0:02:59.4]} 3. Nd2 {[%clk 0:02:57.1]} 3... c5 {[%clk 0:02:54.3]}
4. exd5 {[%clk 0:02:55.2]} 4... Qxd5 {[%clk 0:02:52.6]} 5. Ngf3 {[%clk
0:02:51.3]} 5... cxd4 {[%clk 0:02:52.3]} 6. Bc4 {[%clk 0:02:50.3]} 6... Qd7
{[%clk 0:02:50.7]} 7. Nb3 {[%clk 0:02:46.4]} 7... Nc6 {[%clk 0:02:48.7]} 8. O-O
{[%clk 0:02:37.5]} 8... a6 {[%clk 0:02:48]} 9. Nbxd4 {[%clk 0:02:30.8]} 9... Nf6
{[%clk 0:02:47]} 10. Bf4 {[%clk 0:02:09.8]} 10... Nxd4 {[%clk 0:02:44.8]} 11.
Qxd4 {[%clk 0:02:04.8]} 11... Qxd4 {[%clk 0:02:31.5]} 12. Nxd4 {[%clk
0:02:05.7]} 12... Bd7 {[%clk 0:02:21.1]} 13. Rad1 {[%clk 0:01:47.7]} 13... Rc8
{[%clk 0:02:19.6]} 14. Bb3 {[%clk 0:01:43]} 14... Bc5 {[%clk 0:02:10.4]} 15. Be3
{[%clk 0:01:31.7]} 15... Ke7 {[%clk 0:01:49.8]} 16. Rfe1 {[%clk 0:01:13.5]}
16... g6 {[%clk 0:01:09.9]} 17. c3 {[%clk 0:00:47.1]} 17... h6 {[%clk
0:01:02.4]} 18. Nc2 {[%clk 0:00:41.5]} 18... Bxe3 {[%clk 0:00:59.2]} 19. Nxe3
{[%clk 0:00:38.9]} 19... Bc6 {[%clk 0:00:50.8]} 20. f3 {[%clk 0:00:30.1]} 20...
Rhd8 {[%clk 0:00:49]} 21. Kf2 {[%clk 0:00:29.3]} 21... Rxd1 {[%clk 0:00:43.9]}
22. Rxd1 {[%clk 0:00:30.2]} 22... g5 {[%clk 0:00:43.5]} 23. Nc4 {[%clk
0:00:24.9]} 23... Nd7 {[%clk 0:00:34]} 24. Nd6 {[%clk 0:00:15.4]} 24... Rd8
{[%clk 0:00:30.7]} 25. Bc2 {[%clk 0:00:15.1]} 25... Ne5 {[%clk 0:00:25.3]} 26.
Ne4 {[%clk 0:00:08]} 26... Rxd1 {[%clk 0:00:25.2]} 27. Bxd1 {[%clk 0:00:07.1]}
27... Bxe4 {[%clk 0:00:25.5]} 28. fxe4 {[%clk 0:00:08]} 28... Nd3+ {[%clk
0:00:25.8]} 29. Ke3 {[%clk 0:00:06.9]} 29... Nxb2 {[%clk 0:00:25.4]} 30. Bb3
{[%clk 0:00:07.6]} 30... b5 {[%clk 0:00:25]} 31. Kd4 {[%clk 0:00:05.6]} 31...
Kd6 {[%clk 0:00:23.2]} 32. e5+ {[%clk 0:00:05.1]} 32... Kc6 {[%clk 0:00:23.3]}
33. g3 {[%clk 0:00:04.8]} 33... Kb6 {[%clk 0:00:21.6]} 34. h4 {[%clk 0:00:04.8]}
34... gxh4 {[%clk 0:00:21]} 35. gxh4 {[%clk 0:00:05.7]} 35... Kc6 {[%clk
0:00:20.5]} 36. h5 {[%clk 0:00:04.5]} 36... Kb6 {[%clk 0:00:20.4]} 37. Bd1
{[%clk 0:00:02.8]} 37... Nc4 {[%clk 0:00:20.3]} 38. Bc2 {[%clk 0:00:02.9]} 38...
Kc6 {[%clk 0:00:19.5]} 39. Bh7 {[%clk 0:00:03]} 39... Kd7 {[%clk 0:00:19.5]} 40.
Bg8 {[%clk 0:00:03.1]} 40... Ke7 {[%clk 0:00:19.1]} 41. Kc5 {[%clk 0:00:03.6]}
41... Nxe5 {[%clk 0:00:19.2]} 42. Kb6 {[%clk 0:00:03.8]} 42... f5 {[%clk
0:00:19]} 43. Kxa6 {[%clk 0:00:03.7]} 43... f4 {[%clk 0:00:19.5]} 44. Kxb5
{[%clk 0:00:01]} 44... f3 {[%clk 0:00:19.7]} 45. Bh7 {[%clk 0:00:01.6]} 45... f2
{[%clk 0:00:19.7]} 46. Bd3 {[%clk 0:00:02.5]} 46... Nxd3 {[%clk 0:00:18.6]} 47.
a4 {[%clk 0:00:03.2]} 47... f1=Q {[%clk 0:00:19.2]} 48. a5 {[%clk 0:00:03.9]}
48... Ne5+ {[%clk 0:00:19.3]} 49. Kb6 {[%clk 0:00:04.8]} 49... Qc4 {[%clk
0:00:18.4]} 50. a6 {[%clk 0:00:05.7]} 50... Qc6+ {[%clk 0:00:18.1]} 51. Ka7
{[%clk 0:00:06.6]} 51... Nd7 {[%clk 0:00:14.4]} 0-1

[Event "Early-Titled-Tuesday-Blitz-November-28-2023"]
[Site "Chess.com"]
[Date "2023.11.28"]
[Round "2"]
[White "OhanyanEminChess"]
[Black "PabloZarnicki"]
[Result "1-0"]
[WhiteElo "2861"]
[BlackElo "2554"]
[TimeControl "180+1"]
[EndTime "8:18:34 PST"]
[Termination "OhanyanEminChess won by checkmate"]

1. e4 {[%clk 0:02:58.4]} 1... e5 {[%clk 0:02:59.8]} 2. Nc3 {[%clk 0:02:58.3]}
2... Nf6 {[%clk 0:02:59.3]} 3. Bc4 {[%clk 0:02:58.7]} 3... Nxe4 {[%clk
0:02:58.3]} 4. Qh5 {[%clk 0:02:58.9]} 4... Nd6 {[%clk 0:02:55.5]} 5. Bb3 {[%clk
0:02:52.2]} 5... g6 {[%clk 0:02:44.2]} 6. Qxe5+ {[%clk 0:02:50.8]} 6... Qe7
{[%clk 0:02:44.6]} 7. Qxe7+ {[%clk 0:02:21.2]} 7... Bxe7 {[%clk 0:02:45.5]} 8.
d4 {[%clk 0:02:17.3]} 8... O-O {[%clk 0:02:41.7]} 9. Nf3 {[%clk 0:02:13.9]} 9...
c6 {[%clk 0:02:34.9]} 10. Bh6 {[%clk 0:01:43.3]} 10... Re8 {[%clk 0:02:33.9]}
11. Ne5 {[%clk 0:01:43.4]} 11... Bf8 {[%clk 0:02:27]} 12. Bf4 {[%clk 0:01:35.3]}
12... Kg7 {[%clk 0:02:19.2]} 13. O-O-O {[%clk 0:01:33.9]} 13... f6 {[%clk
0:02:19.5]} 14. Ng4 {[%clk 0:01:18.4]} 14... g5 {[%clk 0:02:15.3]} 15. Bd2
{[%clk 0:00:57.1]} 15... Nf5 {[%clk 0:02:07.9]} 16. d5 {[%clk 0:00:57.5]} 16...
h5 {[%clk 0:01:25.5]} 17. Ne3 {[%clk 0:00:54]} 17... Nxe3 {[%clk 0:01:17.7]} 18.
Bxe3 {[%clk 0:00:54.9]} 18... d6 {[%clk 0:01:18.3]} 19. h4 {[%clk 0:00:38.8]}
19... g4 {[%clk 0:01:15]} 20. Rhe1 {[%clk 0:00:39]} 20... c5 {[%clk 0:01:08.8]}
21. a4 {[%clk 0:00:15.2]} 21... Na6 {[%clk 0:01:02.4]} 22. Ne2 {[%clk
0:00:14.5]} 22... Bd7 {[%clk 0:00:57.3]} 23. Nf4 {[%clk 0:00:12.4]} 23... b5
{[%clk 0:00:49.2]} 24. axb5 {[%clk 0:00:11.8]} 24... Kf7 {[%clk 0:00:49.8]} 25.
bxa6 {[%clk 0:00:11.6]} 25... Bb5 {[%clk 0:00:44.9]} 26. c4 {[%clk 0:00:05.7]}
26... Bxa6 {[%clk 0:00:44.6]} 27. Bc2 {[%clk 0:00:06.4]} 27... Re5 {[%clk
0:00:39.7]} 28. b3 {[%clk 0:00:04.7]} 28... Bc8 {[%clk 0:00:38.2]} 29. Bg6+
{[%clk 0:00:04.3]} 29... Kg7 {[%clk 0:00:36.6]} 30. Bxh5 {[%clk 0:00:03]} 30...
Bf5 {[%clk 0:00:36.8]} 31. f3 {[%clk 0:00:02.4]} 31... g3 {[%clk 0:00:36.3]} 32.
Bg4 {[%clk 0:00:02.8]} 32... Bh7 {[%clk 0:00:35.4]} 33. Ne6+ {[%clk 0:00:03.4]}
33... Kg8 {[%clk 0:00:35.3]} 34. f4 {[%clk 0:00:03.2]} 34... Re4 {[%clk
0:00:34.6]} 35. Bf3 {[%clk 0:00:04]} 35... Rxe3 {[%clk 0:00:32.5]} 36. Rxe3
{[%clk 0:00:04.9]} 36... Bh6 {[%clk 0:00:32.9]} 37. Bh5 {[%clk 0:00:05.6]} 37...
Bf5 {[%clk 0:00:31.4]} 38. Rxg3+ {[%clk 0:00:06.3]} 38... Kh7 {[%clk 0:00:31.7]}
39. Rf1 {[%clk 0:00:06.7]} 39... a5 {[%clk 0:00:31.2]} 40. Bd1 {[%clk
0:00:06.3]} 40... a4 {[%clk 0:00:31]} 41. bxa4 {[%clk 0:00:06.9]} 41... Rb8
{[%clk 0:00:26]} 42. Bc2 {[%clk 0:00:07.5]} 42... Bxc2 {[%clk 0:00:25.9]} 43.
Kxc2 {[%clk 0:00:08.4]} 43... Rb4 {[%clk 0:00:26.3]} 44. Rb1 {[%clk 0:00:04.9]}
44... Rxc4+ {[%clk 0:00:26.1]} 45. Kd3 {[%clk 0:00:04.4]} 45... Rxa4 {[%clk
0:00:25]} 46. Rb7+ {[%clk 0:00:04.8]} 46... Kh8 {[%clk 0:00:25.4]} 47. Rb8+
{[%clk 0:00:05.5]} 47... Kh7 {[%clk 0:00:25.7]} 48. Rb7+ {[%clk 0:00:05.9]}
48... Kh8 {[%clk 0:00:25.8]} 49. Rg6 {[%clk 0:00:06.7]} 49... Bxf4 {[%clk
0:00:20.1]} 50. Rb8+ {[%clk 0:00:07]} 50... Kh7 {[%clk 0:00:20]} 51. Nf8+ {[%clk
0:00:07.6]} 51... Kh8 {[%clk 0:00:19]} 52. Nd7+ {[%clk 0:00:08.5]} 52... Kh7
{[%clk 0:00:19.2]} 53. Nf8+ {[%clk 0:00:06.9]} 53... Kh8 {[%clk 0:00:19.3]} 54.
h5 {[%clk 0:00:07.5]} 54... Bg5 {[%clk 0:00:18.8]} 55. h6 {[%clk 0:00:05.7]}
55... Rd4+ {[%clk 0:00:18.4]} 56. Kc2 {[%clk 0:00:04.9]} 56... Rd2+ {[%clk
0:00:18.1]} 57. Kc3 {[%clk 0:00:04.7]} 57... Rxg2 {[%clk 0:00:19]} 58. Ne6+
{[%clk 0:00:03.9]} 58... Kh7 {[%clk 0:00:19.4]} 59. Rg7+ {[%clk 0:00:04.8]}
59... Kxh6 {[%clk 0:00:19.9]} 60. Rh8# {[%clk 0:00:05.7]} 1-0

[Event "Early-Titled-Tuesday-Blitz-November-28-2023"]
[Site "Chess.com"]
[Date "2023.11.28"]
[Round "2"]
[White "ArtemDyachuk"]
[Black "queen_iryna"]
[Result "1-0"]
[WhiteElo "2524"]
[BlackElo "2323"]
[TimeControl "180+1"]
[EndTime "8:18:35 PST"]
[Termination "ArtemDyachuk won by resignation"]

1. c4 {[%clk 0:02:54.2]} 1... d6 {[%clk 0:03:00.9]} 2. Nc3 {[%clk 0:02:53]} 2...
e5 {[%clk 0:02:59.8]} 3. g3 {[%clk 0:02:50.8]} 3... f5 {[%clk 0:02:58.7]} 4. Bg2
{[%clk 0:02:50.5]} 4... Nf6 {[%clk 0:02:57.1]} 5. d3 {[%clk 0:02:50]} 5... Nc6
{[%clk 0:02:52]} 6. Nf3 {[%clk 0:02:48.2]} 6... g6 {[%clk 0:02:50.9]} 7. O-O
{[%clk 0:02:45.1]} 7... Bg7 {[%clk 0:02:49.9]} 8. Rb1 {[%clk 0:02:45]} 8... O-O
{[%clk 0:02:48.3]} 9. b4 {[%clk 0:02:40.9]} 9... f4 {[%clk 0:02:40.4]} 10. b5
{[%clk 0:02:37]} 10... Ne7 {[%clk 0:02:36.8]} 11. gxf4 {[%clk 0:02:32.2]} 11...
Nh5 {[%clk 0:02:33.4]} 12. fxe5 {[%clk 0:02:31]} 12... dxe5 {[%clk 0:02:34.3]}
13. Ne4 {[%clk 0:02:29.3]} 13... Nf5 {[%clk 0:02:20]} 14. Bg5 {[%clk 0:02:15.7]}
14... Qe8 {[%clk 0:02:15.6]} 15. Qd2 {[%clk 0:01:59.9]} 15... Nd4 {[%clk
0:01:51.8]} 16. Nxd4 {[%clk 0:01:53.2]} 16... exd4 {[%clk 0:01:52.7]} 17. Bh6
{[%clk 0:01:52.4]} 17... Qe5 {[%clk 0:01:22.5]} 18. Bxg7 {[%clk 0:01:50.9]}
18... Kxg7 {[%clk 0:01:17.3]} 19. e3 {[%clk 0:01:50.3]} 19... Bg4 {[%clk
0:00:49.5]} 20. f4 {[%clk 0:01:46.9]} 20... dxe3 {[%clk 0:00:31.2]} 21. Qxe3
{[%clk 0:01:45.9]} 21... Nxf4 {[%clk 0:00:23.2]} 22. Rbe1 {[%clk 0:01:41.4]}
22... Nxg2 {[%clk 0:00:19.8]} 23. Kxg2 {[%clk 0:01:42.3]} 23... Rxf1 {[%clk
0:00:19.1]} 24. Rxf1 {[%clk 0:01:41.2]} 24... Re8 {[%clk 0:00:14.5]} 25. Qg3
{[%clk 0:01:14.3]} 25... Qxg3+ {[%clk 0:00:12.7]} 26. Nxg3 {[%clk 0:01:15.2]}
26... Bd7 {[%clk 0:00:12.4]} 27. Kf2 {[%clk 0:01:13.1]} 27... Rf8+ {[%clk
0:00:12.3]} 28. Ke3 {[%clk 0:01:13.6]} 28... Rxf1 {[%clk 0:00:11.8]} 29. Nxf1
{[%clk 0:01:14.5]} 29... Kf6 {[%clk 0:00:12.1]} 30. Ng3 {[%clk 0:01:12]} 30...
Bf5 {[%clk 0:00:11.5]} 31. Ne2 {[%clk 0:01:09]} 31... Be6 {[%clk 0:00:08.2]} 32.
a4 {[%clk 0:00:59.5]} 32... Ke5 {[%clk 0:00:08.5]} 33. Ng3 {[%clk 0:00:50.4]}
33... g5 {[%clk 0:00:09.4]} 34. d4+ {[%clk 0:00:49.9]} 34... Kf6 {[%clk
0:00:07.3]} 35. d5 {[%clk 0:00:50.1]} 35... Bd7 {[%clk 0:00:07.1]} 36. Kd4
{[%clk 0:00:46.4]} 36... h5 {[%clk 0:00:06.5]} 37. Nxh5+ {[%clk 0:00:45.9]}
37... Kf5 {[%clk 0:00:05.9]} 38. Ng3+ {[%clk 0:00:45.2]} 38... Kf4 {[%clk
0:00:06.2]} 39. Ne4 {[%clk 0:00:46.1]} 39... g4 {[%clk 0:00:05.4]} 40. c5 {[%clk
0:00:41.9]} 40... Kf3 {[%clk 0:00:04.8]} 41. c6 {[%clk 0:00:32.5]} 41... bxc6
{[%clk 0:00:05.7]} 42. bxc6 {[%clk 0:00:33.4]} 42... Bc8 {[%clk 0:00:05.6]} 43.
d6 {[%clk 0:00:30]} 43... cxd6 {[%clk 0:00:05.3]} 44. Nxd6 {[%clk 0:00:30.9]}
44... Ba6 {[%clk 0:00:05.6]} 45. Ke5 {[%clk 0:00:31]} 45... Kg2 {[%clk
0:00:05.6]} 46. Kf4 {[%clk 0:00:31.3]} 46... Kxh2 {[%clk 0:00:06.5]} 47. Kxg4
{[%clk 0:00:31.7]} 47... Kg2 {[%clk 0:00:06.9]} 48. Kf4 {[%clk 0:00:31.8]} 48...
Kf2 {[%clk 0:00:07.5]} 49. Ke4 {[%clk 0:00:32.4]} 49... Ke2 {[%clk 0:00:08.1]}
50. Kd4 {[%clk 0:00:33]} 50... Kd2 {[%clk 0:00:09]} 51. Kc5 {[%clk 0:00:33.4]}
51... Kc3 {[%clk 0:00:09.2]} 52. Nb5+ {[%clk 0:00:20.7]} 52... Kb3 {[%clk
0:00:09.2]} 53. Nxa7 {[%clk 0:00:19.6]} 53... Kxa4 {[%clk 0:00:09.2]} 54. Kb6
{[%clk 0:00:20.5]} 54... Bc8 {[%clk 0:00:06]} 55. Nxc8 {[%clk 0:00:20.3]} 1-0